Cogmind - Beta 13 X1 @@@ ROGUE MODE // 2023.09.28 @ 18:35:28 Player: f3-rnm Result: Destroyed by HN-H1S(R) with Subdweller Beam Cannon Performance ------------- Evolutions (0) 0 Regions Visited (2) 400 Robots Destroyed (29) 145 Value Destroyed (669) 669 Prototype IDs (10) 200 Alien Tech Used (0) 0 Bonus (0) 0 TOTAL SCORE: 1414 Bonus ------- None Cogmind --------- Core Integrity 0/250 Matter 300/300 Energy 248/250 System Corruption 0% Temperature Cool (10) Movement Walking (330) Ox3 Location -10/Subcaves Parts ------- > --- POWER (1) -------- Ion Engine > --- PROPULSION (2) --- Aluminum Leg > --- UTILITY (2) ------ Scrap Shield > --- WEAPON (2) ------- Subdweller Shrapnel Launcher Makeshift Hammer > --- INVENTORY (5) ---- Power Bank Subdweller Beam Cannon Battle Rifle Subdweller Machine Gun Scrap Shield Fragment (49) Peak State ------------ > --- POWER ------------ Ion Engine > --- PROPULSION ------- Aluminum Leg Subdweller Monowheel > --- UTILITY ---------- Scrap Shield > --- WEAPON ----------- Subdweller Shrapnel Launcher Makeshift Hammer > --- INVENTORY -------- Power Bank Subdweller Beam Cannon Battle Rifle Subdweller Machine Gun Scrap Shield Fragment [Rating: 15] Favorites ----------- Power Ion Engine Engine Ion Engine Propulsion Aluminum Leg Treads Spiked Treads Leg Aluminum Leg Wheel Subdweller Monowheel Utility Scrap Shield Device Heat Sink Storage Huge Storage Unit Protection Scrap Shield Weapon Makeshift Hammer Energy Gun Small Laser Energy Cannon Subdweller Beam Cannon Ballistic Gun Subdweller Machine Gun Launcher Subdweller Shrapnel Launcher Impact Weapon Makeshift Hammer Build | -11 -10 -10 ------- Run | Jun Mat Sub Slots Evolved . | . . . Power . | . . . Propulsion . | . . . Utility . | . . . Weapon . | . . . Parts Attached 33 | 5 10 18 Power 2 | 1 1 . Engine 2 | 1 1 . Core . | . . . Reactor . | . . . Propulsion 7 | 2 1 4 Treads 5 | 2 1 2 Leg 1 | . . 1 Wheel 1 | . . 1 Hover . | . . . Flight . | . . . Utility 6 | . 3 3 Device 2 | . 1 1 Storage 2 | . 2 . Processor . | . . . Hackware . | . . . Protection 2 | . . 2 Artifact . | . . . Weapon 18 | 2 5 11 Energy Gun 6 | 1 2 3 Energy Cannon 1 | . . 1 Ballistic Gun 3 | 1 . 2 Ballistic Cannon . | . . . Launcher 7 | . 3 4 Special Weapon . | . . . Impact Weapon 1 | . . 1 Slashing Weapon . | . . . Piercing Weapon . | . . . Special Melee Weapon . | . . . Unidentified Prototypes . | . . . Parts Lost 10 | . 1 9 Power 1 | . 1 . Propulsion 4 | . . 4 Utility 2 | . . 2 Weapon 3 | . . 3 Highest Loss Streak 3 | . 1 3 To Critical Strikes 1 | . . 1 Average Slot Usage (%) 83 | . 90 82 Engine 13 | . 8 14 Treads 13 | . 28 10 Leg 9 | . . 11 Device 3 | . 10 2 Storage 4 | . 13 2 Protection 9 | . . 11 Energy Gun 2 | . 7 1 Energy Cannon 2 | . . 2 Ballistic Gun 8 | . 14 7 Launcher 7 | . 6 7 Impact Weapon 7 | . . 8 Naked Turns . | . . . Heaviest Build 94 | 6 90 94 Greatest Support 40 | 40 40 40 Greatest Overweight (x) 11 | . 2 11 Average Overweight (x) 1 | . . 2 Largest Inventory Capacity 25 | 5 25 25 Average Capacity 9 | 5 14 8 Most Carried 13 | 5 13 13 Average Carried 6 | 2 8 6 Final Capacity 25 | 5 25 5 Final Carried 12 | 2 12 5 Class Distribution -------------------- 79% | Mutant 20% | Subdweller-Mutant Dominant Class ---------------- Mutant | -10/Materials Mutant | -10/Subcaves Resources | -11 -10 -10 ----------- Run | Jun Mat Sub Matter Collected 887 | 200 190 497 Remotely . | . . . Salvage Created 713 | . 351 362 Parts 54 | . 31 23 Haulers Intercepted 1 | . 1 . Recyclers Shooed . | . . . Parts Field Recycled . | . . . Retrieved Matter . | . . . Parts Self-Destructed 13 | . . 13 Prevented . | . . . Kills | -11 -10 -10 ------- Run | Jun Mat Sub Combat Hostiles Destroyed 26 | . 15 11 Melee 2 | . . 2 Guns 6 | . 2 4 AOE 17 | . 13 4 Classes Destroyed 6 | . 5 1 Tunneler 1 | . 1 . Hauler 1 | . 1 . Recycler 1 | . 1 . Swarmer 13 | . 9 4 Grunt 6 | . 6 . Subdweller 7 | . . 7 Best Kill Streak 5 | . 5 4 Combat Bots Only 4 | . 4 4 Max Kills in Single Turn 3 | . 2 3 Gunslinging . | . . . Exploded 3 | . 2 3 Melee 1 | . . 1 Uniques/NPCs Destroyed . | . . . Combat | -11 -10 -10 -------- Run | Jun Mat Sub Damage Taken 1653 | . 293 1360 Core 270 | . 43 227 Absorbed by Shields . | . . . Core Remaining (%) 100 | 100 . . Volleys Fired 71 | . 39 32 Largest 2 | . 2 2 Hottest 110 | . 70 110 Shots Fired 138 | . 78 60 Gun 96 | . 61 35 Cannon 7 | . . 7 Launcher 35 | . 17 18 Special . | . . . Kinetic 51 | . 39 12 Thermal 52 | . 22 30 Explosive 35 | . 17 18 Electromagnetic . | . . . Robot Hit Streak 12 | . 9 12 Robot Miss Streak 5 | . 5 2 Penetration Max . | . . . Secondary Targets . | . . . Shots Hit Robots 84 | . 35 49 Core Hits 48 | . 29 19 Critical Kills . | . . . Critical Parts Destroyed 2 | . . 2 Critical Strikes 4 | . 2 2 Burn 2 | . 2 . Smash 2 | . . 2 Melee Attacks 40 | . . 40 Impact 40 | . . 40 Slashing . | . . . Piercing . | . . . Sneak Attacks . | . . . Combat Hostiles . | . . . Follow-up Attacks . | . . . Damage Inflicted 2873 | . 1289 1584 Guns 575 | . 278 297 Cannons . | . . . Explosions 1372 | . 1011 361 Melee 926 | . . 926 Ramming . | . . . Kinetic 232 | . 140 92 Thermal 343 | . 138 205 Explosive 1372 | . 1011 361 Electromagnetic . | . . . Impact 926 | . . 926 Slashing . | . . . Piercing . | . . . Highest Corruption . | . . . Average Corruption . | . . . Corruption Purged . | . . . Corruption Blocked . | . . . Overload Shots . | . . . Overflow Damage 208 | . 18 190 Projectiles . | . . . Explosions 24 | . 18 6 Melee 184 | . . 184 Knockbacks 5 | . . 5 Impact 5 | . . 5 Kinetic . | . . . Secondary . | . . . Self-Inflicted Damage 163 | . 68 95 Shots 9 | . 4 5 Rammed . | . . . Targets Rammed . | . . . Kicked . | . . . Crushed . | . . . Highest Temperature 80 | . 80 . Average Temperature 25 | . 25 . Received Heat Transfer 249 | . 60 189 Siege Activations . | . . . Robots Corrupted . | . . . Combat Hostiles . | . . . Parts Fried 3 | . . 3 Impact Corruptions 6 | . . 6 Robots Melted . | . . . Combat Hostiles . | . . . Parts Melted 3 | . 2 1 Heat Transferred 1053 | . 555 498 Parts Sabotaged . | . . . Parts Stolen . | . . . Parts Stripped . | . . . Power Chain Reactions . | . . . Missiles Intercepted . | . . . Alert | -11 -10 -10 ------- Run | Jun Mat Sub Peak Influence 345 | . 345 . Initial . | . . . Average 136 | . 144 . Maximum Alert Level 1 | . 1 . Low Security (%) 72 | 100 71 . Level 1 27 | . 28 . Level 2 . | . . . Level 3 . | . . . Level 4 . | . . . Level 5 . | . . . High Security . | . . . Max Security . | . . . Squads Dispatched 2 | . 2 . Investigation . | . . . Extermination . | . . . Reinforcement 2 | . 2 . Assault . | . . . Garrison . | . . . Intercept . | . . . Searches Triggered . | . . . Construction Impeded . | . . . Haulers Reinforced . | . . . Active Scanning Responses . | . . . Cargo Convoy Interrupts . | . . . Stealth | -11 -10 -10 --------- Run | Jun Mat Sub Distress Signals 3 | . 3 . Communications Jammed . | . . . Distress Signals . | . . . Times Spotted 44 | . 23 21 Peak Tracking Total 5 | . 5 3 Tactical Retreats 12 | . 1 11 Traps | -11 -10 -10 ------- Run | Jun Mat Sub Traps Triggered 6 | . 1 5 Indirectly . | . . . Trap Hack Attempts . | . . . Triggered . | . . . Disarmed . | . . . Reprogrammed . | . . . Reused . | . . . Traps Extracted . | . . . Installed . | . . . Triggered . | . . . Machines | -11 -10 -10 ---------- Run | Jun Mat Sub Machines Disabled 5 | . 4 1 Max in Single Turn 1 | . 1 1 Machines Repaired . | . . . Machines Sabotaged . | . . . Overloaded Fab Kills . | . . . Hacking | -11 -10 -10 --------- Run | Jun Mat Sub Machines Accessed 2 | . . 2 Terminals . | . . . Fabricators . | . . . Repair Stations . | . . . Recycling Units . | . . . Scanalyzers . | . . . Garrison Access . | . . . Total Hacks 3 | . . 3 Successful 3 | . . 3 Failed . | . . . Catastrophic . | . . . Database Lockouts . | . . . Manual . | . . . Terminals . | . . . Fabricators . | . . . Repair Stations . | . . . Recycling Units . | . . . Scanalyzers . | . . . Garrison Access . | . . . Terminal Hacks 3 | . . 3 Record 2 | . . 2 Derelict Proto ID Bank 1 | . . 1 Fabricator Hacks . | . . . Repair Station Hacks . | . . . Recycling Unit Hacks . | . . . Scanalyzer . | . . . Garrison Access Hacks . | . . . Unauthorized Hacks . | . . . Terminals . | . . . Fabricators . | . . . Repair Stations . | . . . Recycling Units . | . . . Scanalyzers . | . . . Garrison Access . | . . . Data Cores Recovered . | . . . Used . | . . . Hacking Detections . | . . . Full Trace Events . | . . . Feedback Events . | . . . Feedback Blocked . | . . . Robot Schematics Acquired . | . . . Robots Built . | . . . Authchips . | . . . Time . | . . . Total Robot Build Rating . | . . . Part Schematics Acquired . | . . . Parts Built . | . . . Authchips . | . . . Time . | . . . Total Part Build Rating . | . . . Parts Repaired . | . . . Time . | . . . Parts Recycled . | . . . Recycled Matter . | . . . Retrieved Matter . | . . . Retrieved Components . | . . . Parts Scanalyzed . | . . . Part Schematics Acquired . | . . . Parts Damaged . | . . . Bothacking | -11 -10 -10 ------------ Run | Jun Mat Sub Used RIF Installer . | . . . Robots Hacked . | . . . Non-combat . | . . . Combat . | . . . Robot Hacks Applied . | . . . Relay Couplers Released . | . . . Fabnet Peak Effective % . | . . . Robots Rewired . | . . . Allies Hacked . | . . . Hacks Repelled . | . . . Allies | -11 -10 -10 -------- Run | Jun Mat Sub Total Allies . | . . . Largest Group . | . . . Highest-Rated Group . | . . . Highest-Rated Ally . | . . . Total Orders . | . . . Ally Attacks . | . . . Total Damage . | . . . Kills . | . . . Allies Corrupted . | . . . Allies Melted . | . . . Intel | -11 -10 -10 ------- Run | Jun Mat Sub Robot Analysis Total . | . . . Derelict Logs Recovered . | . . . Drone Launches . | . . . Drone Recoveries . | . . . Exploration | -11 -10 -10 ------------- Run | Jun Mat Sub Turns Passed 9278 | 70 1187 8021 Spaces Moved 3161 | 46 507 2608 Core 230 | 13 . 217 Treads 2290 | 33 507 1750 Legs 364 | . . 364 Wheels 277 | . . 277 Hover . | . . . Flight . | . . . Fastest Speed 50 | 50 160 120 Average Speed 280 | 128 201 298 Slowest Speed 600 | 160 320 600 Overloaded Moves . | . . . Propulsion Burnouts . | . . . Robots Hopped . | . . . Cave-ins Triggered . | . . . Exploration Rate (%) 60 | 4 89 89 Regions Visited 2 Branch Regions 1 Pre-discovered Areas 1 | . . 1 Known Exits Taken . | . . . Unknown Exits Taken 2 | 1 1 . Scrap Searched 1 | . . 1 Spaces Dug 13 | . 9 4 Terrain Destroyed 182 | . 105 77 Melee 4 | . . 4 Projectile 1 | . . 1 AOE 177 | . 105 72 Terrain Rammed . | . . . Walls Destroyed . | . . . Machines Disabled . | . . . Actions | -11 -10 -10 --------- Run | Jun Mat Sub Total 3417 | 57 601 2759 Wait 53 | . 32 21 Move 3159 | 45 506 2608 Hop . | . . . Pick Up 37 | 7 13 17 Fast Attach 7 | . 1 6 Attach 14 | 5 3 6 Detach . | . . . Swap 12 | . 6 6 Drop 16 | . 1 15 Fire 71 | . 39 32 Melee 40 | . . 40 Ram . | . . . Kick . | . . . Crush . | . . . Escape Stasis . | . . . Rewire . | . . . Trap . | . . . Miscellaneous 8 | . . 8 Route ------- -11/Junkyard -10/Materials (discovered 4 exits: [*Mat x2] / [*Min] / *Sub) -10/Subcaves (discovered 2 exits: [*Mat x2]) History --------- Turn | Location | Event 4 | -11/Junkyard | Discovered new exit (range 15) 71 | -11/Junkyard | Entered Materials 313 | -10/Materials | Build established: Mutant 433 | -10/Materials | Discovered new exit (range 16) 474 | -10/Materials | Discovered new exit (range 4) 653 | -10/Materials | Discovered new exit (range 7) 977 | -10/Materials | Discovered new exit (range 16) 1258 | -10/Materials | Entered Subcaves 1912 | -10/Subcaves | Discovered new exit (range 7) 3122 | -10/Subcaves | Build established: Subdweller-Mutant 3420 | -10/Subcaves | Discovered new exit (range 10) 3495 | -10/Subcaves | Visited Clippyterm 3503 | -10/Subcaves | Learned Factory garrison access intel 3707 | -10/Subcaves | Core integrity fell below 50% 4030 | -10/Subcaves | Shifting Twisted Machinery released Mak. Kinetic Plating 4078 | -10/Subcaves | Shifting Twisted Machinery released Sub. Beam Cannon 4347 | -10/Subcaves | A swath of the cavern ceiling suddenly collapsed 4705 | -10/Subcaves | Build established: Mutant 4732 | -10/Subcaves | Shifting Twisted Machinery released Piercing Trap 4807 | -10/Subcaves | Learned location of Zion (-7) 4807 | -10/Subcaves | Met a Zionite searching for "candidates" 5094 | -10/Subcaves | Shifting Twisted Machinery released Shrapnel Trap 6339 | -10/Subcaves | Shifting Twisted Machinery released Sub. Monowheel 6343 | -10/Subcaves | Shifting Twisted Machinery released Shrapnel Trap 6397 | -10/Subcaves | Core integrity fell below 20% 6433 | -10/Subcaves | Lost 3 parts (1n1u1w) 7653 | -10/Subcaves | Visited 4L-MR0's lab 7725 | -10/Subcaves | Found Power Bank 8490 | -10/Subcaves | Build established: Subdweller-Mutant 8826 | -10/Subcaves | Build established: Mutant 9279 | -10/Subcaves | Destroyed by HN-H1S(R) with Subdweller Beam Cannon Last Messages --------------- VL-GR5's Exoskeleton "Deathgrip" Powered Cannon 07714_ Dropped Sub. Monowheel. 07725_ Acquired Power Bank. 07838_ ZD-KMW(R) destroyed. 07843_ Scrap Shield Fragment affixed to Scrap Shield (+45). 07844_ Acquired 3 matter. 08089_ IX-3JZ(u) tweaks Twisted Machinery. 08184_ Acquired Sub. Monowheel. 08468_ Scrap Shield Fragment affixed to Scrap Shield (+43). 08470_ Scrap Shield Fragment affixed to Scrap Shield (+40). 08519_ Sub. Monowheel shoots sparks and powers down. 08520_ Dropped Broken Sub. Monowheel. 09013_ Destroyed Sub. Optics. 09013_ CQ-CAO(R) system corrupted by crushing effect. 09014_ CQ-CAO(R) system terminally corrupted. 09014_ Sub. Monowheel fried. 09014_ Sub. Power Source fried. 09015_ Acquired 10 matter. 09277_ HN-H1S(R) knocked back. Map ----- +----------------------------------------------------+ | ????????????????####????????????????# ## | | ???????????????????????????????????## | | ???????????????????????????????????# | | ???????????????????????????????????# ### | | ???????????????????????????????????# ##?## | | ???????????????????????????????????# ###### | | ???????????????????????????????????### # # | | ????????????????????????????????????## | | ????????????????????????????????????# | | ???????????????????????????????####### #### | | ???????????????? ?????????????## ##?## ## | | ?????????????????"????????????# #??## ### | | ?????????????????? ???????????### #???####?? | | ??????????????????# ???????###??## ##???????? | | ?????????????????## ??##### #???# ###?????? | | ?????????????????# ?# #???# ##????? | | ???????????????### ## # ##?## ##???? | | ???????????????# # ### #???? | | ???????????????# # ##"" "" #???? | | ???????????????# ??### ##""" "" #??? | | ???????????????# ??## #""" " "" #####??? | | ???????????????# ?# ##"" ""#### #??????? | | ????????????????# "# #" """#??## ## #?????? | | ????????????????# "# # """#######?# #????? | | ?????????????????# " R " "" "##????# ???? | | ?????????????????## """ @ "" "#????? #?? | | ??????????????????##"# ### " """"??????# #?? | | ???????????????????#######?# """ ""???????# ##?? | | ??????????????????????????? """"" ""#???######??# | | ??????????????????????????? """ #????# ###### | | ??????????????????????????? " ?????# | | ??????????????????????????? ?"????## | | ?????????????????????????? ???????### | | ?????????????????????????? ?????????## | | ?????????????????????????? ???????????## | | ?????????????????????????? ####????????????### | | ????????????????????????? ## #?????????????????## | | ?????????????????????????"?? #??????????????????# | | ?????????????????????????"?? ???????????????????? | | ????????????????????????????# ???????????????????? | | ????????????????????????????? ???????????????????? | | ?????????????????????????????????????????????????? | | ???????#####?????????????????????????????????????? | | ??????## ##????????????????????????????????????? | | ?###### #????????????????????????????????????? | | ## #????????????????????????????????????? | | #####????????????????????????????????????? | | ##????##??????????????????????????????????? | | ##????# ?????????????????????????????????? | | ### ##????? ??????????????????????????????????? | +----------------------------------------------------+ Best States ------------- Heat Dissipation 35 Energy Generation 10 Energy Capacity 250 Matter Stores 300 Matter Capacity 300 Sight Range 21 Terrain Scan Density 10 Armor Coverage 800 Evasion (%) 50 Recoil Reduction 2 Item Schematics ----------------- None Robot Schematics ------------------ None Fabricated ------------ Nothing Alien Tech Used ----------------- None Achievements -------------- None Challenges ------------ None Game ------ Seed TimingCarbidePod Manual? 0 Play Time 00:18:17 Cumulative 83.9 hours Start 2023.09.28 @ 18:14:44 End 2023.09.28 @ 18:35:28 Sessions 1 Manual Loads 0 Difficulty Rogue Special Mode None Game No. 87 Rogue 51 Adventurer 36 Explorer 0 Win Type - Total 7 Types 2/0/5/0/0/0/0/0/0 Lore% 47 Gallery% 69 Achievement% 58 Wizard Run 0 Options --------- ASCII 0 Keyboard 0 Movement Mouse Keybinds 0 Fullscreen 1 Font 18/SmallcapsGlow Map View 76x50 Tactical HUD 1 Map Filters NONE Filters NONE Steam 1 RUN: cf7a02c5-9699-45e4-8b1e-87af9cd79b84